bitfinex-derivatives/quotes_SOLF0:USTF0_20250113
["timestamp","ask_amount","ask_price","bid_price","bid_amount"]
[1736729575274,1.5613,191.52,191.42,2.6131]
[1736729575572,2.6125,191.47,191.42,2.6131]
[1736729576172,1.5613,191.52,191.4,2.6134]
[1736729576378,20.97907482,191.51,191.35,20.97907482]
[1736729577278,20.97907482,191.48,191.32,21.15707482]
[1736729577479,13.11445088,191.46,191.34,13.11445088]
[1736729578177,2.6135,191.41,191.35,2.6141]
[1736729580373,13.11445088,191.46,191.35,2.6141]
[1736729580678,2.6135,191.4,191.35,2.6141]
[1736729581672,8.8983,191.47,191.34,13.11445088]
[1736729581875,8.8983,191.47,191.3,24.20674876]
[1736729581876,13.11445088,191.46,191.3,24.20674876]
[1736729582477,2.6141,191.36,191.31,2.6147]
[1736729582782,13.11445088,191.46,191.3,24.20674876]
[1736729582984,2.6135,191.4,191.35,2.6141]
[1736729583183,13.11445088,191.46,191.35,2.6141]
[1736729583486,2.6132,191.43,191.34,2.6143]
[1736729583683,13.11445088,191.46,191.34,2.6143]
[1736729583884,5.74,191.45,191.34,2.6143]
[1736729584986,2.6132,191.42,191.34,2.6143]
[1736729585186,5.74,191.45,191.35,2.6141]
[1736729585488,2.6135,191.4,191.35,2.6141]
[1736729585688,2.6135,191.4,191.34,2.6143]
[1736729586288,2.6137,191.39,191.33,13.11445088]
[1736729587189,2.6137,191.39,191.33,15.72885088]
[1736729587585,2.6137,191.39,191.33,13.11445088]
[1736729587789,2.6136,191.39,191.34,2.6142]
[1736729589787,2.6139,191.37,191.33,13.11445088]
[1736729589987,1.6493,191.44,191.33,13.11445088]
[1736729590183,2.6136,191.4,191.36,13.11445088]
[1736729591894,2.6137,191.39,191.36,13.11445088]
[1736729592595,2.6138,191.38,191.36,13.11445088]
[1736729592990,1.6493,191.44,191.36,13.11445088]
[1736729594702,2.6136,191.39,191.36,13.11445088]
[1736729597003,1.6493,191.44,191.36,13.11445088]
[1736729597203,2.6134,191.41,191.36,13.11445088]
[1736729599606,1.6493,191.44,191.36,13.11445088]
[1736729599806,2.6137,191.39,191.36,13.11445088]
[1736729600906,2.6138,191.38,191.36,13.11445088]
[1736729601406,1.6493,191.44,191.33,13.11445088]
[1736729602305,2.6134,191.41,191.33,13.11445088]
[1736729602603,1.6493,191.44,191.33,13.11445088]
[1736729604107,2.6138,191.38,191.33,13.11445088]
[1736729607311,2.6138,191.38,191.36,8.39308144]
[1736729608204,8.39308144,191.43,191.36,8.39308144]
[1736729608409,2.6139,191.37,191.36,8.39308144]
[1736729611310,1.6493,191.44,191.36,8.39308144]
[1736729611612,1.6493,191.44,191.42,8.39308144]
[1736729611907,2.613,191.43,191.42,8.39308144]
[1736729612114,1.5728,191.47,191.42,8.39308144]
[1736729612315,1.5728,191.47,191.46,8.39308144]
[1736729613203,2.6128,191.45,191.44,8.39308144]
[1736729616415,2.6133,191.41,191.35,2.6141]
[1736729616610,8.39308144,191.45,191.39,8.39308144]
[1736729616816,8.39308144,191.43,191.37,8.39308144]
[1736729617212,2.6135,191.4,191.37,8.39308144]
[1736729619619,2.6134,191.41,191.37,8.39308144]
[1736729621216,2.6134,191.41,191.35,2.6141]
[1736729621418,1.5317,191.44,191.38,8.39308144]
[1736729621619,2.6135,191.4,191.38,8.39308144]
[1736729621925,1.5317,191.44,191.38,8.39308144]
[1736729622119,2.6133,191.42,191.38,8.39308144]
[1736729622422,1.5317,191.44,191.38,8.39308144]
[1736729622622,2.6134,191.41,191.38,8.39308144]
[1736729622928,8.39308144,191.43,191.38,8.39308144]
[1736729623222,2.6136,191.39,191.36,8.39308144]
[1736729626427,8.39308144,191.43,191.36,8.39308144]
[1736729626627,2.6137,191.38,191.36,8.39308144]
[1736729629331,2.6142,191.35,191.31,2.6147]
[1736729629527,5.74,191.43,191.33,8.39308144]
[1736729629830,5.74,191.43,191.37,8.39308144]
[1736729630121,2.6136,191.4,191.37,8.39308144]
[1736729630327,5.74,191.43,191.37,8.39308144]
[1736729630528,2.6136,191.4,191.37,8.39308144]
[1736729630727,5.74,191.43,191.39,8.39308144]
[1736729631027,5.74,191.43,191.41,8.39308144]
[1736729631522,3.1423,191.44,191.41,8.39308144]
[1736729631722,113.55569089,191.51,191.43,8.39308144]
[1736729631926,120.90749089,191.51,191.45,8.39308144]
[1736729632329,120.90749089,191.51,191.47,8.39308144]
[1736729632921,2.6123,191.49,191.47,8.39308144]
[1736729635830,2.6124,191.48,191.45,8.39308144]
[1736729638729,2.6122,191.5,191.45,8.39308144]
[1736729642038,2.612,191.51,191.45,11.00588144]
[1736729642230,1.5149,191.52,191.45,8.39308144]
[1736729642428,8.39308144,191.51,191.45,8.39308144]
[1736729643226,2.6121,191.5,191.45,8.39308144]
[1736729643727,1.6485,191.55,191.45,8.39308144]
[1736729643928,1.6485,191.55,191.31,21.8031]
[1736729643929,14.87060034,191.56,191.51,8.39308144]
[1736729644333,8.39308144,191.56,191.51,8.39308144]
[1736729644732,2.6115,191.55,191.51,8.39308144]
[1736729644939,8.39308144,191.58,191.51,8.39308144]
[1736729646133,2.6114,191.56,191.51,8.39308144]
[1736729647035,8.39308144,191.58,191.51,8.39308144]
[1736729647232,2.6114,191.55,191.51,8.39308144]
[1736729647835,2.6115,191.55,191.51,8.39308144]
[1736729648640,2.6117,191.53,191.48,2.6124]
[1736729648937,8.39308144,191.52,191.4,0.3532]
[1736729649135,2.6128,191.45,191.4,2.9665]
[1736729649331,8.39308144,191.48,191.41,8.39308144]
[1736729650225,8.39308144,191.48,191.43,8.39308144]
[1736729650431,2.6128,191.46,191.43,8.39308144]
[1736729651330,2.6123,191.49,191.43,8.39308144]
[1736729651540,8.39308144,191.49,191.43,8.39308144]
[1736729651939,8.39308144,191.47,191.32,0.3548]
[1736729652241,8.39308144,191.45,191.39,8.39308144]
[1736729652437,8.39308144,191.45,191.32,6.0748]
[1736729652634,8.39308144,191.45,191.38,8.39308144]
[1736729652835,2.613,191.44,191.38,8.39308144]
[1736729653143,8.39308144,191.47,191.4,8.39308144]
[1736729653439,8.39308144,191.49,191.42,8.39308144]
[1736729653939,2.6127,191.46,191.42,8.39308144]
[1736729656237,8.39308144,191.49,191.42,8.39308144]
[1736729657033,2.6125,191.47,191.42,8.39308144]
[1736729657739,11.00548144,191.49,191.42,11.00618144]
[1736729658040,8.39308144,191.49,191.42,11.00618144]
[1736729658232,2.613,191.44,191.39,8.39308144]
[1736729659242,2.6132,191.42,191.37,8.39308144]
[1736729661146,8.39308144,191.43,191.37,8.39308144]
[1736729662152,2.6135,191.4,191.35,8.39308144]
[1736729662445,8.39308144,191.39,191.33,8.39308144]
[1736729662950,2.6137,191.38,191.33,8.39308144]
[1736729664143,2.6139,191.37,191.33,8.39308144]
[1736729664342,8.39308144,191.39,191.33,8.39308144]
[1736729664544,2.6139,191.37,191.33,8.39308144]
[1736729666750,8.39308144,191.41,191.35,8.39308144]
[1736729667444,2.6135,191.4,191.35,8.39308144]
[1736729667648,4.751,191.42,191.35,8.39308144]
[1736729668252,2.6135,191.4,191.35,8.39308144]
[1736729668453,4.751,191.42,191.35,8.39308144]
[1736729668955,147.14343439,191.54,191.41,8.39308144]
[1736729669252,147.14343439,191.54,191.53,8.39308144]
[1736729669657,1.572,191.59,191.53,8.39308144]
[1736729669853,4.237,191.62,191.56,8.39308144]
[1736729670047,4.237,191.62,191.58,8.39308144]
[1736729670354,2.6106,191.61,191.56,8.39308144]
[1736729670550,1.6265,191.62,191.56,8.39308144]
[1736729670756,10.01958144,191.62,191.56,8.39308144]
[1736729671156,2.6109,191.59,191.56,8.39308144]
[1736729671352,1.6265,191.62,191.46,0.1766]
[1736729671553,1.6265,191.62,191.48,13.09185862]
[1736729671856,13.09185862,191.6,191.48,13.09185862]
[1736729672356,1.6265,191.62,191.45,13.09185862]
[1736729672357,13.09185862,191.57,191.45,13.09185862]
[1736729672557,3.1794,191.56,191.45,13.09185862]
[1736729673154,2.6118,191.52,191.45,13.09185862]
[1736729674755,3.1794,191.56,191.45,13.09185862]
[1736729674963,13.09185862,191.54,191.4,13.09185862]
[1736729675157,1.5992,191.53,191.4,13.09185862]
[1736729676758,13.09185862,191.51,191.4,13.09185862]
[1736729677860,2.6124,191.48,191.4,13.09185862]
[1736729678163,13.09185862,191.48,191.37,13.09185862]
[1736729678355,3.2089,191.47,191.37,13.09185862]
[1736729678662,3.2089,191.47,191.34,13.09185862]
[1736729679356,2.6135,191.4,191.34,13.09185862]
[1736729680266,2.6136,191.39,191.34,13.09185862]
[1736729681262,2.6141,191.35,191.34,13.09185862]
[1736729681659,1.6525,191.44,191.31,13.09185862]
[1736729682564,2.6141,191.35,191.31,13.09185862]
[1736729683565,1.6525,191.44,191.31,13.09185862]
[1736729683767,2.6143,191.34,191.31,13.09185862]
[1736729685269,2.6142,191.35,191.31,13.09185862]
[1736729686271,5.72,191.41,191.28,13.09185862]
[1736729687169,2.6146,191.32,191.28,13.09185862]
[1736729687374,5.72,191.41,191.31,13.09185862]
[1736729688676,2.6137,191.38,191.31,13.09185862]
[1736729688877,5.72,191.41,191.31,13.09185862]
[1736729689480,5.72,191.41,191.34,13.09185862]
[1736729690282,2.6139,191.38,191.34,13.09185862]
[1736729695183,5.72,191.41,191.34,13.09185862]
[1736729695384,2.6139,191.37,191.34,13.09185862]
[1736729700191,2.6136,191.4,191.34,15.70615862]
[1736729700390,1.6525,191.44,191.34,13.09185862]
[1736729700790,2.6138,191.38,191.34,13.09185862]
[1736729701090,1.6525,191.44,191.37,13.09185862]
[1736729701789,2.6136,191.4,191.37,13.09185862]
[1736729702186,3.2089,191.47,191.37,13.09185862]
[1736729702392,2.613,191.44,191.4,13.09185862]
[1736729702590,7.3106,191.53,191.4,13.09185862]
[1736729702791,3.2454,191.52,191.43,13.09185862]
[1736729703594,3.2454,191.52,191.42,13.09185862]
[1736729703988,2.6126,191.47,191.42,13.09185862]
[1736729704191,3.2454,191.52,191.42,13.09185862]
[1736729705496,2.6126,191.47,191.42,13.09185862]
[1736729705991,3.2454,191.52,191.42,13.09185862]
[1736729706496,2.6125,191.47,191.42,13.09185862]
[1736729706889,3.2454,191.52,191.42,13.09185862]
[1736729707096,2.6127,191.46,191.42,13.09185862]
[1736729709593,13.09185862,191.48,191.32,0.3524]
[1736729709793,13.09185862,191.48,191.35,13.09185862]
[1736729710196,2.6136,191.4,191.35,13.09185862]
[1736729710597,13.09185862,191.48,191.35,13.09185862]
[1736729710798,13.09185862,191.51,191.38,13.09185862]
[1736729711291,8.38897999,191.48,191.41,8.38897999]
[1736729711896,8.38897999,191.46,191.32,0.3524]
[1736729712097,8.38897999,191.44,191.37,8.38897999]
[1736729712496,8.38897999,191.42,191.35,8.38897999]
[1736729712995,2.6138,191.38,191.35,8.38897999]
[1736729713501,1.5214,191.45,191.35,13.11630662]
[1736729714097,3.166,191.44,191.35,13.11630662]
[1736729714497,2.6136,191.4,191.35,13.11630662]
[1736729716203,3.166,191.44,191.35,13.11630662]
[1736729716609,3.166,191.44,191.32,15.73070662]
[1736729717003,2.6139,191.37,191.32,15.73070662]
[1736729718302,16.28230662,191.44,191.32,15.73070662]
[1736729720207,2.6138,191.38,191.32,15.73070662]
[1736729721409,16.28230662,191.44,191.32,15.73070662]
[1736729721607,2.6141,191.36,191.32,13.11630662]
[1736729721805,16.28230662,191.44,191.32,13.11630662]
[1736729722502,2.6134,191.41,191.32,13.11630662]
[1736729722803,16.28230662,191.44,191.32,13.11630662]
[1736729723202,13.11630662,191.41,191.29,13.11630662]
[1736729724307,2.6141,191.36,191.29,13.11630662]
[1736729725105,2.6141,191.36,191.3,2.6148]
[1736729725508,2.6142,191.35,191.29,13.11630662]
[1736729725705,13.11630662,191.41,191.29,13.11630662]
[1736729727010,2.6145,191.33,191.29,13.11630662]
[1736729727208,13.11630662,191.41,191.29,13.11630662]
[1736729727804,2.6138,191.38,191.29,13.11630662]
[1736729728006,5.72,191.38,191.29,13.11630662]
[1736729728512,119.31784191,191.42,191.32,13.11630662]
[1736729729410,113.59784191,191.42,191.32,13.11630662]
[1736729730614,2.614,191.36,191.32,13.11630662]
[1736729731916,113.59784191,191.42,191.32,13.11630662]
[1736729732115,2.6142,191.35,191.32,13.11630662]
[1736729733010,113.59784191,191.42,191.32,13.11630662]
[1736729733514,8.39536018,191.4,191.33,8.39536018]
[1736729733817,2.6143,191.34,191.22,5.72]
[1736729734017,2.6143,191.34,191.33,8.39536018]
[1736729734213,113.59784191,191.42,191.33,8.39536018]
[1736729734408,2.6141,191.36,191.35,8.39536018]
[1736729736313,2.6144,191.34,191.25,5.72]
[1736729736519,8.39536018,191.4,191.32,8.39536018]
[1736729736719,8.39536018,191.4,191.25,5.72]
[1736729737015,2.6143,191.34,191.33,8.39536018]
[1736729738619,2.6141,191.36,191.33,8.39536018]
[1736729738920,8.39536018,191.4,191.33,8.39536018]
[1736729739420,2.6141,191.36,191.29,2.6149]
[1736729739621,8.39536018,191.4,191.33,8.39536018]
[1736729739821,2.6141,191.36,191.33,8.39536018]
[1736729740317,8.39536018,191.4,191.33,8.39536018]
[1736729741012,2.6142,191.35,191.33,8.39536018]
[1736729741215,8.39536018,191.38,191.29,2.615]
[1736729741418,8.39536018,191.36,191.2,0.3491]
[1736729741721,2.6148,191.31,191.28,8.39536018]
[1736729742416,2.6148,191.3,191.28,8.39536018]
[1736729742618,3.1592,191.35,191.28,2.6151]
[1736729742914,3.1592,191.35,191.29,8.39536018]
[1736729743819,3.1592,191.35,191.31,8.39536018]
[1736729744426,2.6144,191.34,191.29,8.39536018]
[1736729744719,3.1592,191.35,191.29,8.39536018]
[1736729745322,2.6145,191.33,191.29,8.39536018]
[1736729746920,2.6146,191.32,191.29,8.39536018]
[1736729747522,2.6146,191.32,191.31,8.39536018]
[1736729751630,8.39536018,191.34,191.2,0.3491]
[1736729751924,8.39536018,191.32,191.19,28.16234644]
[1736729752122,2.6154,191.26,191.19,28.16234644]
[1736729752317,8.39536018,191.31,191.19,28.16234644]
[1736729752517,8.39536018,191.31,191.26,8.39536018]
[1736729752714,2.6152,191.28,191.19,28.16234644]
[1736729752920,11.55456018,191.35,191.27,8.39536018]
[1736729753124,2.6144,191.34,191.29,8.39536018]
[1736729753324,3.1592,191.35,191.33,8.39536018]
[1736729753721,5.7734,191.35,191.33,8.39536018]
[1736729755526,2.6143,191.34,191.33,8.39536018]
[1736729757335,3.1592,191.35,191.19,28.16234644]
[1736729757529,11.55456018,191.35,191.28,8.39536018]
[1736729758034,8.39536018,191.33,191.26,8.39536018]
[1736729758234,8.39536018,191.33,191.28,8.39536018]
[1736729758433,11.55456018,191.35,191.28,8.39536018]
[1736729759235,2.615,191.3,191.28,8.39536018]
[1736729761141,2.6145,191.33,191.28,8.39536018]
[1736729761334,2.6145,191.33,191.19,1.5354]
[1736729761335,1.6035,191.37,191.31,8.39536018]
[1736729761535,1.6035,191.37,191.33,8.39536018]
[1736729761831,8.39536018,191.39,191.33,8.39536018]
[1736729762037,119.31784191,191.42,191.37,8.39536018]
[1736729762342,8.39536018,191.41,191.35,8.39536018]
[1736729762542,11.68026018,191.41,191.35,8.39536018]
[1736729762838,2.6136,191.4,191.35,8.39536018]
[1736729763041,11.68026018,191.41,191.35,8.39536018]
[1736729763546,2.614,191.37,191.35,8.39536018]
[1736729763842,2.614,191.37,191.33,8.39536018]
[1736729764040,8.39536018,191.39,191.33,8.39536018]
[1736729764237,8.39536018,191.39,191.24,5.72]
[1736729764541,8.39536018,191.35,191.23,1.6491]
[1736729764741,8.39536018,191.35,191.28,8.39536018]
[1736729764942,3.2849,191.41,191.21,7.04058661]
[1736729764943,8.39536018,191.33,191.21,7.04058661]
[1736729765139,8.39536018,191.33,191.25,8.39536018]
[1736729765342,9.92226018,191.33,191.25,8.39536018]
[1736729765537,1.5269,191.33,191.27,8.39536018]
[1736729765734,8.39536018,191.35,191.29,8.39536018]
[1736729766042,5.72,191.36,191.31,8.39536018]
[1736729766443,2.6145,191.33,191.26,2.6152]
[1736729766640,5.72,191.36,191.26,2.6152]
[1736729766840,5.72,191.36,191.31,8.39536018]
[1736729767041,2.6143,191.35,191.31,8.39536018]
[1736729767444,2.6143,191.35,191.28,15.73472277]
[1736729768141,2.6143,191.34,191.28,15.73472277]
[1736729768843,2.6143,191.34,191.28,13.11972277]
[1736729769544,7.2469,191.4,191.29,2.6149]
[1736729769744,13.11972277,191.39,191.28,13.11972277]
[1736729770646,13.11972277,191.39,191.25,13.11972277]
[1736729770843,13.11972277,191.39,191.22,5.72]
[1736729771145,2.6146,191.32,191.25,15.73522277]
[1736729771443,13.11972277,191.39,191.25,13.11972277]
[1736729771747,13.11972277,191.36,191.25,13.11972277]
[1736729772446,1.5341,191.35,191.25,13.11972277]
[1736729772645,1.5341,191.35,191.22,15.73562277]
[1736729772846,13.11972277,191.33,191.22,13.11972277]
[1736729773041,3.2787,191.32,191.22,13.11972277]
[1736729773937,2.6152,191.28,191.22,13.11972277]
[1736729774142,3.2787,191.32,191.22,13.11972277]
[1736729774646,1.6347,191.32,191.22,13.11972277]
[1736729774945,1.6347,191.32,191.24,2.6156]
[1736729775537,1.6347,191.32,191.23,2.6157]
[1736729776948,128.31450687,191.39,191.25,13.11972277]
[1736729777152,129.94100687,191.39,191.28,13.11972277]
[1736729777445,129.94100687,191.39,191.28,15.73482277]
[1736729777841,129.94100687,191.39,191.28,13.11972277]
[1736729778049,129.94100687,191.39,191.29,2.6149]
[1736729778244,16.32462277,191.39,191.29,2.6149]
[1736729778448,2.6142,191.35,191.28,13.11972277]
[1736729778645,2.6142,191.35,191.28,15.73482277]
[1736729779144,2.6143,191.34,191.29,13.11972277]
[1736729779350,3.2049,191.39,191.29,13.11972277]
[1736729779746,16.32462277,191.39,191.26,13.11972277]
[1736729780049,16.32462277,191.39,191.23,5.72]
[1736729780250,16.32462277,191.39,191.24,13.11972277]
[1736729780549,2.6151,191.29,191.24,13.11972277]
[1736729781150,13.11972277,191.36,191.24,13.11972277]
[1736729781851,1.5275,191.35,191.24,13.11972277]
[1736729782350,2.6151,191.29,191.24,13.11972277]
[1736729782953,1.5275,191.35,191.24,13.11972277]
[1736729782954,2.6151,191.28,191.24,13.11972277]
[1736729783851,2.6153,191.27,191.24,13.11972277]
[1736729786255,1.5275,191.35,191.24,13.11972277]
[1736729786456,2.615,191.29,191.24,15.73522277]
[1736729787356,2.6151,191.28,191.24,15.73522277]
[1736729791358,2.6153,191.27,191.24,13.11972277]
[1736729791559,1.5275,191.35,191.24,13.11972277]
[1736729791859,2.6146,191.32,191.24,13.11972277]
[1736729792061,1.5275,191.35,191.24,13.11972277]
[1736729793366,2.6151,191.29,191.26,8.40006511]
[1736729798670,2.6148,191.3,191.28,8.40006511]
[1736729798866,1.5275,191.35,191.28,8.40006511]
[1736729799072,8.40006511,191.38,191.3,8.40006511]
[1736729799265,2.6145,191.33,191.3,8.40006511]
[1736729800169,8.40006511,191.38,191.3,8.40006511]
[1736729801065,2.6143,191.34,191.3,8.40006511]
[1736729802074,3.2049,191.39,191.32,8.40006511]
[1736729802267,8.40006511,191.38,191.32,8.40006511]
[1736729802766,2.6142,191.35,191.2,28.16234644]
[1736729802965,8.40006511,191.36,191.3,8.40006511]
[1736729803171,8.40006511,191.34,191.28,8.40006511]
[1736729803573,8.40006511,191.36,191.28,8.40006511]
[1736729804371,2.6145,191.33,191.28,8.40006511]
[1736729805073,2.6146,191.32,191.28,8.40006511]
[1736729805574,8.40006511,191.36,191.28,8.40006511]
[1736729805776,2.6144,191.33,191.28,8.40006511]
[1736729806670,2.614,191.36,191.3,8.40006511]
[1736729806876,8.40006511,191.38,191.3,8.40006511]
[1736729807874,2.6143,191.34,191.3,8.40006511]
[1736729808873,8.40006511,191.38,191.3,8.40006511]
[1736729809074,2.6142,191.35,191.3,8.40006511]
[1736729810074,2.6142,191.35,191.3,11.01486511]
[1736729811780,2.614,191.37,191.34,8.40006511]
[1736729811981,3.2049,191.39,191.32,8.40006511]
[1736729812277,2.614,191.36,191.31,8.40006511]
[1736729820084,2.6142,191.35,191.31,8.40006511]
[1736729821586,1.661,191.42,191.33,8.40006511]
[1736729821889,8.40006511,191.42,191.35,8.40006511]
[1736729822085,8.40006511,191.42,191.36,2.614]
[1736729822290,120.06942891,191.44,191.37,8.40006511]
[1736729822490,128.46949402,191.44,191.37,8.40006511]
[1736729822694,2.6131,191.43,191.39,2.6136]
[1736729823300,2.6131,191.43,191.37,8.40006511]
[1736729823505,2.6131,191.43,191.38,2.6137]
[1736729824693,8.40006511,191.42,191.32,4.7511]
[1736729824893,8.40006511,191.4,191.32,4.7511]
[1736729825094,8.40006511,191.36,191.31,11.01466511]
[1736729825592,8.40006511,191.36,191.29,8.40006511]
[1736729825895,2.6141,191.35,191.31,2.6147]
[1736729827093,2.6145,191.33,191.29,2.6149]
[1736729827688,2.6145,191.33,191.21,5.7]
[1736729827689,2.6145,191.33,191.28,2.6151]
[1736729827884,8.40006511,191.32,191.28,2.6151]
[1736729828091,11.01486511,191.3,191.21,3.0158]
[1736729828290,8.40006511,191.3,191.24,2.6156]
[1736729828690,8.40006511,191.28,191.21,3.0158]
[1736729828893,8.40006511,191.28,191.21,11.41586511]
[1736729829094,8.40006511,191.28,191.22,8.40006511]
[1736729829291,2.6149,191.3,191.21,3.0158]
[1736729829492,13.13183267,191.31,191.22,2.6159]
[1736729830708,13.13183267,191.31,191.23,2.6158]
[1736729830709,2.6152,191.28,191.23,2.6158]
[1736729831110,4.5868,191.33,191.22,13.13183267]
[1736729831310,4.5868,191.33,191.25,13.13183267]
[1736729831512,1.498,191.33,191.21,3.0158]
[1736729831709,1.498,191.33,191.22,13.13183267]
[1736729832100,2.6147,191.31,191.22,13.13183267]
[1736729832410,1.498,191.33,191.22,13.13183267]
[1736729832611,1.498,191.33,191.28,2.6151]
[1736729833709,1.498,191.33,191.25,13.13183267]
[1736729834012,5.7,191.34,191.3,2.6148]
[1736729835010,5.7,191.34,191.25,13.13183267]
[1736729835413,5.7,191.34,191.22,13.13183267]
[1736729836114,2.6147,191.31,191.27,2.6152]
[1736729836916,5.7,191.34,191.27,2.6152]
[1736729837118,5.7,191.34,191.3,2.6148]
[1736729837411,2.6142,191.35,191.3,2.6148]
[1736729839511,3.1208,191.36,191.3,2.6148]
[1736729839718,1.6236,191.39,191.3,2.6148]
[1736729839719,2.6138,191.38,191.32,2.6144]
[1736729839919,1.6236,191.39,191.3,13.13183267]
[1736729840716,2.6141,191.36,191.29,2.6148]
[1736729840913,1.6236,191.39,191.29,2.6148]
[1736729841415,13.13183267,191.38,191.29,2.6148]
[1736729841616,13.13183267,191.38,191.21,8.7158]
[1736729841617,13.13183267,191.35,191.21,3.0158]
[1736729841812,13.13183267,191.31,191.19,7.04058661]
[1736729842017,7.2079,191.3,191.19,7.04058661]
[1736729842315,13.13183267,191.28,191.19,7.04058661]
[1736729842713,13.13183267,191.28,191.16,11.10124004]
[1736729842919,13.13183267,191.22,191.1,13.13183267]
[1736729843121,18.83183267,191.22,191.1,13.13183267]
[1736729843315,13.13183267,191.16,191.09,28.16234644]
[1736729843722,2.617,191.14,191.09,28.16234644]
[1736729844021,13.13183267,191.13,191.0,233.39773852]
[1736729844218,3.0175,191.12,191.0,14.77733267]
[1736729844616,2.6174,191.11,191.02,2.6186]
[1736729845222,15.74923267,191.11,191.02,2.6186]
[1736729846124,2.6176,191.1,191.0,17.39623267]
[1736729846625,13.13183267,191.11,191.02,2.6186]
[1736729847025,13.13183267,191.11,191.0,14.77733267]
[1736729847418,3.0175,191.12,191.0,14.77733267]
[1736729848120,1.5079,191.12,191.07,2.618]
[1736729848326,1.6004,191.19,191.06,13.13183267]
[1736729849127,2.6165,191.18,191.06,13.13183267]
[1736729849328,13.13183267,191.17,191.06,13.13183267]
[1736729849728,2.6168,191.16,191.08,2.6178]
[1736729850929,2.6169,191.15,191.08,2.6178]
[1736729851631,2.6176,191.1,191.03,2.6185]
[1736729851927,13.13183267,191.09,191.0,1.6455]
[1736729852329,2.618,191.07,191.0,1.6455]
[1736729852830,13.13183267,191.09,191.0,1.6455]
[1736729853027,13.13183267,191.06,190.95,1.5022]
[1736729853226,3.1946,191.11,190.93,102.94394325]
[1736729853227,13.13183267,191.03,190.93,102.94394325]
[1736729853434,13.13183267,191.0,190.89,13.13183267]
[1736729853727,13.13183267,191.0,190.91,18.60460206]
[1736729853925,5.7,191.06,190.91,15.98460206]
[1736729854132,2.6198,190.94,190.87,4.1316]
[1736729854330,13.13183267,190.97,190.87,4.1316]
[1736729854830,13.13183267,190.97,190.89,2.6204]
[1736729855133,13.13183267,190.97,190.87,1.5109]
[1736729855430,29.86517264,190.98,190.87,1.5109]
[1736729856226,2.6196,190.95,190.88,2.6206]
[1736729856935,2.6195,190.96,190.89,2.6204]
[1736729857229,7.245,190.98,190.87,1.5109]
[1736729857928,26.80947264,191.06,190.88,21.08947264]
[1736729858133,2.6187,191.02,190.88,21.08947264]
[1736729860128,2.6188,191.01,190.95,2.6195]
[1736729860834,2.6192,190.98,190.92,2.62]
[1736729861136,21.08947264,191.0,190.87,9.45185726]
[1736729861434,1.6623,190.99,190.87,9.45185726]
[1736729862034,2.6195,190.96,190.9,2.6202]
[1736729862636,2.6196,190.95,190.9,2.6202]
[1736729864435,2.6199,190.93,190.88,2.6205]
[1736729865338,2.6198,190.94,190.88,2.6205]
[1736729865531,5.72,190.97,190.9,2.6203]
[1736729866134,2.6197,190.95,190.88,2.6205]
[1736729866335,2.6197,190.95,190.87,7.94095726]
[1736729867037,2.6198,190.94,190.88,2.6206]
[1736729870839,21.08947264,190.96,190.87,7.94095726]
[1736729871040,2.6196,190.96,190.87,7.94095726]
[1736729872538,5.7832,190.98,190.93,2.6199]
[1736729873136,5.7832,190.98,190.87,7.94095726]
[1736729874739,5.7832,190.98,190.9,2.6203]
[1736729874940,3.1639,190.98,190.87,7.94095726]
[1736729875142,2.6193,190.97,190.87,7.94095726]
[1736729875543,3.1639,190.98,190.87,7.94095726]
[1736729875943,21.08947264,191.02,190.88,21.08947264]
[1736729876141,21.08947264,191.02,190.89,1.5022]
[1736729876646,2.6189,191.01,190.95,2.6195]
[1736729878038,15.79123668,191.03,190.97,2.6193]
[1736729878240,13.17273668,191.03,190.9,16.39093668]
[1736729878742,13.17273668,191.03,190.96,2.6194]
[1736729878743,2.6188,191.02,190.96,2.6194]
[1736729880542,2.6188,191.02,190.9,16.39093668]
[1736729880543,2.6185,191.04,190.93,13.17273668]
[1736729880744,17.81073668,191.07,190.93,13.17273668]
[1736729881141,2.6187,191.02,190.93,13.17273668]
[1736729881345,2.6187,191.02,190.9,16.39093668]
[1736729881841,2.6187,191.02,190.96,2.6194]
[1736729883658,13.17273668,191.01,190.9,16.39093668]
[1736729883838,13.17273668,190.98,190.87,7.94095726]
[1736729884043,1.6583,190.97,190.87,7.94095726]